Cogmind - Beta 13 X3 @@@ ROGUE MODE // 2024.02.21 @ 22:18:10 Player: Minty Result: Destroyed by DE-UGO(R) with Subdweller Machine Gun Performance ------------- Evolutions (0) 0 Regions Visited (2) 400 Robots Destroyed (29) 145 Value Destroyed (681) 681 Prototype IDs (2) 40 Alien Tech Used (0) 0 Bonus (38) 38 TOTAL SCORE: 1304 Bonus ------- High Alert Combat Kills 38 Cogmind --------- Core Integrity 0/250 Matter 183/300 Energy 100/100 System Corruption 0% Temperature Cool (0) Movement Core (100) Ox1 Location -10/Subcaves Parts ------- > --- POWER (1) -------- (None) > --- PROPULSION (2) --- (None) > --- UTILITY (2) ------ Heat Sink Weapon Shielding > --- WEAPON (2) ------- Mini Grenade Launcher Mini Grenade Launcher > --- INVENTORY (5) ---- Flight Unit Flight Unit Hacking Suite Light Assault Rifle Peak State ------------ > --- POWER ------------ Light Ion Engine > --- PROPULSION ------- Flight Unit Flight Unit > --- UTILITY ---------- Heat Sink Weapon Shielding > --- WEAPON ----------- Mini Grenade Launcher Mini Grenade Launcher > --- INVENTORY -------- Flight Unit Flight Unit Hacking Suite Light Assault Rifle [Rating: 9] Favorites ----------- Power Light Ion Engine Engine Light Ion Engine Propulsion Flight Unit Leg Aluminum Leg Hover Unit Hover Unit Flight Unit Flight Unit Utility Heat Sink Device Heat Sink Storage Small Storage Unit Processor Signal Interpreter Protection Weapon Shielding Weapon Light Assault Rifle Energy Gun Medium Laser Energy Cannon Beam Cannon Ballistic Gun Light Assault Rifle Launcher Mini Grenade Launcher Build | -11 -10 -10 ------- Run | Yrd Mat Sub Slots Evolved . | . . . Power . | . . . Propulsion . | . . . Utility . | . . . Weapon . | . . . Parts Attached 24 | . 22 2 Power 1 | . 1 . Engine 1 | . 1 . Core . | . . . Reactor . | . . . Propulsion 6 | . 5 1 Treads . | . . . Leg 1 | . 1 . Wheel . | . . . Hover 1 | . 1 . Flight 4 | . 3 1 Utility 5 | . 5 . Device 3 | . 3 . Storage . | . . . Processor 1 | . 1 . Hackware . | . . . Protection 1 | . 1 . Artifact . | . . . Weapon 12 | . 11 1 Energy Gun 3 | . 3 . Energy Cannon 2 | . 2 . Ballistic Gun 3 | . 3 . Ballistic Cannon . | . . . Launcher 4 | . 3 1 Special Weapon . | . . . Impact Weapon . | . . . Slashing Weapon . | . . . Piercing Weapon . | . . . Special Melee Weapon . | . . . Unidentified Prototypes . | . . . Parts Lost 7 | . 3 4 Power 1 | . . 1 Propulsion 4 | . 1 3 Utility . | . . . Weapon 2 | . 2 . Highest Loss Streak 3 | . 2 3 To Critical Strikes . | . . . Average Slot Usage (%) 92 | . 90 100 Engine 14 | . 14 14 Leg 8 | . 12 . Flight 15 | . 10 28 Device 9 | . 7 14 Storage 4 | . 6 . Processor 3 | . 4 . Protection 8 | . 6 14 Energy Gun 6 | . 8 . Energy Cannon 2 | . 4 . Ballistic Gun 11 | . 11 14 Launcher 5 | . 1 14 Naked Turns . | . . . Heaviest Build 14 | 11 14 7 Greatest Support 20 | 20 20 8 Greatest Overweight (x) 1 | . 1 . Average Overweight (x) . | . . . Largest Inventory Capacity 8 | . 8 5 Average Capacity 6 | . 6 5 Most Carried 6 | . 6 5 Average Carried 4 | . 4 4 Final Capacity 8 | 8 5 5 Final Carried 6 | 6 5 4 Class Distribution -------------------- 100% | Mutant Dominant Class ---------------- Mutant | -10/Materials Mutant | -10/Subcaves Resources | -11 -10 -10 ----------- Run | Yrd Mat Sub Matter Collected 595 | 200 211 184 Remotely . | . . . Salvage Created 629 | . 504 125 Parts 74 | . 59 15 Haulers Intercepted . | . . . Recyclers Shooed . | . . . Parts Field Recycled . | . . . Retrieved Matter . | . . . Parts Self-Destructed 5 | . . 5 Prevented . | . . . Kills | -11 -10 -10 ------- Run | Yrd Mat Sub Combat Hostiles Destroyed 22 | . 17 5 Guns 7 | . 6 1 Cannons 4 | . 4 . AOE 11 | . 7 4 Classes Destroyed 9 | . 6 3 Builder 1 | . 1 . Tunneler 3 | . 3 . Operator 1 | . 1 . Watcher 2 | . 2 . Swarmer 9 | . 6 3 Grunt 11 | . 11 . Artisan 2 | . . 2 Cobbler 1 | . . 1 Subdweller 2 | . . 2 Best Kill Streak 7 | . 7 3 Combat Bots Only 6 | . 6 3 Max Kills in Single Turn 2 | . 2 2 Gunslinging . | . . . Exploded 2 | . 2 2 Melee . | . . . Uniques/NPCs Destroyed . | . . . Combat | -11 -10 -10 -------- Run | Yrd Mat Sub Hostile Shots Fired 103 | . 92 11 Missed 31 | . 29 2 Damage Taken 969 | . 751 218 Core 265 | . 138 127 Absorbed by Shields . | . . . Redirected to Shielding 19 | . 15 4 Core Remaining (%) 100 | 100 . . Volleys Fired 94 | . 69 25 Largest 2 | . 2 2 Hottest 110 | . 110 60 Shots Fired 153 | . 120 33 Gun 103 | . 79 24 Cannon 26 | . 26 . Launcher 24 | . 15 9 Special . | . . . Kinetic 67 | . 43 24 Thermal 62 | . 62 . Explosive 24 | . 15 9 Electromagnetic . | . . . Robot Hit Streak 12 | . 12 11 Robot Miss Streak 5 | . 5 3 Penetration Max . | . . . Secondary Targets . | . . . Shots Hit Robots 87 | . 63 24 Core Hits 54 | . 38 16 Critical Kills . | . . . Critical Parts Destroyed . | . . . Critical Strikes 2 | . 2 . Burn 2 | . 2 . Melee Attacks . | . . . Impact . | . . . Slashing . | . . . Piercing . | . . . Sneak Attacks . | . . . Combat Hostiles . | . . . Follow-up Attacks . | . . . Damage Inflicted 1901 | . 1122 779 Guns 570 | . 455 115 Cannons 193 | . 193 . Explosions 1138 | . 474 664 Melee . | . . . Ramming . | . . . Kinetic 343 | . 228 115 Thermal 420 | . 420 . Explosive 1138 | . 474 664 Electromagnetic . | . . . Impact . | . . . Slashing . | . . . Piercing . | . . . Highest Corruption . | . . . Average Corruption . | . . . Corruption Purged . | . . . Corruption Blocked . | . . . Overload Shots . | . . . Overflow Damage 48 | . 2 46 Projectiles . | . . . Explosions 48 | . 2 46 Melee . | . . . Knockbacks . | . . . Impact . | . . . Kinetic . | . . . Secondary . | . . . Self-Inflicted Damage 172 | . 146 26 Shots 6 | . 5 1 Rammed . | . . . Targets Rammed . | . . . Kicked . | . . . Crushed . | . . . Highest Temperature 393 | . 393 . Average Temperature 94 | . 94 . Received Heat Transfer 237 | . 192 45 Effects 2 | . 2 . Shutdowns 1 | . 1 . Energy Bleed 1 | . 1 . Siege Activations . | . . . Robots Corrupted . | . . . Combat Hostiles . | . . . Parts Fried . | . . . Impact Corruptions . | . . . Robots Melted . | . . . Combat Hostiles . | . . . Parts Melted 2 | . 2 . Heat Transferred 1221 | . 1221 . Parts Sabotaged . | . . . Parts Stolen . | . . . Parts Stripped . | . . . Power Chain Reactions . | . . . Alert | -11 -10 -10 ------- Run | Yrd Mat Sub Peak Influence 537 | . 537 . Initial . | . . . Average 328 | . 328 . Maximum Alert Level 2 | . 2 . Low Security (%) 24 | . 24 . Level 1 27 | . 27 . Level 2 48 | . 48 . Level 3 . | . . . Level 4 . | . . . Level 5 . | . . . High Security . | . . . Max Security . | . . . Squads Dispatched 4 | . 4 . Investigation 2 | . 2 . Extermination . | . . . Reinforcement 2 | . 2 . Assault . | . . . Garrison . | . . . Intercept . | . . . Searches Triggered . | . . . Construction Impeded . | . . . Haulers Reinforced . | . . . Active Scanning Responses . | . . . Cargo Convoy Interrupts . | . . . Stealth | -11 -10 -10 --------- Run | Yrd Mat Sub Distress Signals 1 | . 1 . Communications Jammed . | . . . Distress Signals . | . . . Times Spotted 32 | . 27 5 Peak Tracking Total 6 | . 6 3 Tactical Retreats 2 | . 2 . Traps | -11 -10 -10 ------- Run | Yrd Mat Sub Traps Triggered 1 | . 1 . Indirectly . | . . . Trap Hack Attempts . | . . . Triggered . | . . . Disarmed . | . . . Reprogrammed . | . . . Reused . | . . . Traps Extracted . | . . . Installed 1 | . . 1 Triggered . | . . . Machines | -11 -10 -10 ---------- Run | Yrd Mat Sub Machines Disabled 5 | . 5 . Max in Single Turn 2 | . 2 . Machines Repaired . | . . . Machines Dismantled . | . . . Machines Sabotaged . | . . . Overloaded Fab Kills . | . . . Hacking | -11 -10 -10 --------- Run | Yrd Mat Sub Machines Accessed 1 | . 1 . Terminals 1 | . 1 . Fabricators . | . . . Repair Stations . | . . . Recycling Units . | . . . Scanalyzers . | . . . Garrison Access . | . . . Total Hacks 4 | . 4 . Successful 4 | . 4 . Failed . | . . . Catastrophic . | . . . Database Lockouts . | . . . Manual 2 | . 2 . Terminals 4 | . 4 . Fabricators . | . . . Repair Stations . | . . . Recycling Units . | . . . Scanalyzers . | . . . Garrison Access . | . . . Terminal Hacks 2 | . 2 . Prototype ID Bank 1 | . 1 . Maintenance Status 1 | . 1 . Fabricator Hacks . | . . . Repair Station Hacks . | . . . Recycling Unit Hacks . | . . . Scanalyzer . | . . . Garrison Access Hacks . | . . . Unauthorized Hacks 2 | . 2 . Terminals 2 | . 2 . Botnet 1 | . 1 . Search 1 | . 1 . Fabricators . | . . . Repair Stations . | . . . Recycling Units . | . . . Scanalyzers . | . . . Garrison Access . | . . . Data Cores Recovered . | . . . Used . | . . . Hacking Detections 1 | . 1 . Full Trace Events . | . . . Feedback Events . | . . . Feedback Blocked . | . . . Robot Schematics Acquired . | . . . Robots Built . | . . . Authchips . | . . . Time . | . . . Total Robot Build Rating . | . . . Part Schematics Acquired . | . . . Parts Built . | . . . Authchips . | . . . Time . | . . . Total Part Build Rating . | . . . Parts Repaired . | . . . Time . | . . . Parts Recycled . | . . . Recycled Matter . | . . . Retrieved Matter . | . . . Retrieved Components . | . . . Parts Scanalyzed . | . . . Part Schematics Acquired . | . . . Parts Damaged . | . . . Bothacking | -11 -10 -10 ------------ Run | Yrd Mat Sub Used RIF Installer . | . . . Robots Hacked . | . . . Non-combat . | . . . Combat . | . . . Robot Hacks Applied . | . . . Relay Couplers Released . | . . . Fabnet Peak Effective % . | . . . Robots Rewired . | . . . Allies Hacked . | . . . Hacks Repelled . | . . . Allies | -11 -10 -10 -------- Run | Yrd Mat Sub Total Allies . | . . . Largest Group . | . . . Highest-Rated Group . | . . . Highest-Rated Ally . | . . . Total Orders . | . . . Ally Attacks . | . . . Total Damage . | . . . Kills . | . . . Allies Corrupted . | . . . Allies Melted . | . . . Intel | -11 -10 -10 ------- Run | Yrd Mat Sub Robot Analysis Total . | . . . Derelict Logs Recovered 1 | . . 1 Drone Launches . | . . . Drone Recoveries . | . . . Exploration | -11 -10 -10 ------------- Run | Yrd Mat Sub Turns Passed 617 | . 453 164 Spaces Moved 589 | 1 300 288 Core 14 | . 14 . Treads . | . . . Legs 89 | 1 88 . Wheels . | . . . Hover 13 | . 13 . Flight 473 | . 185 288 Fastest Speed 37 | 120 37 37 Average Speed 52 | 120 66 37 Slowest Speed 190 | 120 190 37 Overloaded Moves . | . . . Propulsion Burnouts . | . . . Robots Hopped 5 | . 5 . Cave-ins Triggered . | . . . Exploration Rate (%) 24 | 2 41 30 Regions Visited 2 Branch Regions 1 Pre-discovered Areas 1 | . . 1 Known Exits Taken . | . . . Unknown Exits Taken 2 | 1 1 . Scrap Searched . | . . . Spaces Dug . | . . . Terrain Destroyed 135 | . 85 50 Melee . | . . . Projectile . | . . . AOE 135 | . 85 50 Terrain Rammed . | . . . Walls Destroyed . | . . . Machines Disabled . | . . . Actions | -11 -10 -10 --------- Run | Yrd Mat Sub Total 754 | . 437 317 Wait 24 | . 23 1 Move 578 | . 290 288 Hop 4 | . 4 . Pick Up 9 | . 9 . Fast Attach 10 | . 10 . Attach 6 | . 5 1 Detach 4 | . 4 . Swap 8 | . 7 1 Drop 16 | . 16 . Fire 94 | . 69 25 Melee . | . . . Ram . | . . . Kick . | . . . Crush . | . . . Escape Stasis . | . . . Rewire . | . . . Trap 1 | . . 1 Miscellaneous . | . . . Route ------- -11/Scrapyard -10/Materials (discovered 2 exits: [*Mat] / [*Sub]) -10/Subcaves History --------- Turn | Location | Event 1 | -11/Scrapyard | Discovered new exit (range 0) 1 | -11/Scrapyard | Entered Materials 260 | -10/Materials | Core integrity fell below 50% 327 | -10/Materials | Build established: Mutant 354 | -10/Materials | Discovered new exit (range 13) 448 | -10/Materials | Discovered new exit (range 12) 454 | -10/Materials | Entered Subcaves 488 | -10/Subcaves | Learned Materials security intel 504 | -10/Subcaves | Shifting Twisted Machinery released Battle Cannon 532 | -10/Subcaves | Shifting Twisted Machinery released Shrapnel Trap 569 | -10/Subcaves | Learned location of Zion (-6) 569 | -10/Subcaves | Met a Zionite searching for "candidates" 614 | -10/Subcaves | Core integrity fell below 20% 615 | -10/Subcaves | Ambushed by angry Subdweller bent on revenge 618 | -10/Subcaves | Destroyed by DE-UGO(R) with Subdweller Machine Gun Last Messages --------------- a trip to Zion?" World map updated: -6/Zion. 00569_ Acquired 10 matter. 00572_ Acquired 13 matter. 00574_ Acquired 11 matter. 00582_ Acquired 8 matter. 00584_ Flight Unit destroyed. 00597_ R2-8GI(R) destroyed. 00601_ The unstable cave ceiling collapses. 00610_ UL-LSC(R) emerges from the Twisted Machinery. 00611_ GB-TSH(u) cries out in pain. 00611_ GB-TSH(u) destroyed. 00615_ DE-UGO(R) angrily emerges from the Twisted Machinery. 00615_ DE-UGO(R): "SUBMAD!" 00615_ Lgt. Ion Engine destroyed. 00616_ Destroyed Sub. Optics. 00616_ 63-IQX(R) destroyed. 00616_ Flight Unit destroyed. 00617_ 8Y-D8I(O) collects matter. 00617_ Flight Unit destroyed. Map ----- +----------------------------------------------------+ | | | | | | | | | | | | | | | ?????????????????????????????????????????????????? | | ?????????????????????????????????????????????????? | | ?????????????????????????????????????????????????? | | ?????????????????????????????????????????????????? | | ?????????????????????????????????????????????????? | | ?????????????????????????????????????????????????? | | ?????????????????????????????????????????????????? | | ?????????????????????????????????????????????????? | | ?????????????????????????????????????????????????? | | ?????????????????????????????????????????????????? | | ?????????????????????????????????????????????????? | | ?????????????????????????????????????????????????? | | ?????????????????????????????????????????????????? | | ?????????????????????????????????????????????????? | | ??????????????????????######?????????????????????? | | ??????????????????????#"" #??####???????????????? | | ?????????????"" ="###"" ##?# #???????????????? | | ????????????"" = """R #?# ##??????????????? | | ????????????"" |* @ ### ###????????????? | | ????????????"" R ##???????????? | | ????????????""" %* #### #???????????? | | ???????????? #????## #???????????? | | ??????????? "O"" ????????# ##??????????? | | ?????????????? ??????????# #??????????? | | ?????????????#????????????# #??????????? | | ??????????????????????????###### ##?????????? | | ???????????????????????????????## #?????????? | | ????????????????????????????????# ##?????????? | | ????????????????????????????????# ###??????????? | | #???????????????????????????????# #####?????????? | | #???????????????????????????????## ## ##????????? | | #???????????????????????????????## ##???????? | | ##??????????????????????????????# #???????? | | #??????????????????????????????## ##???????? | | #???????????????????????????????#### ##????????? | | #?????????????????????????????????# ##?????????? | | #?????????????????????????????????# ##?????????? | | ##???????????????????????????????## #?????????? | | #??????????????????????????????## #?????????? | | ##??################???????##### ##?##??????? | | #### # # # #??????## # ##?? #??????? | | # ######## ^ #?? #??????? | | ## ## # # # ##?# #??????? | +----------------------------------------------------+ Best States ------------- Heat Dissipation 35 Energy Generation 10 Energy Capacity 125 Matter Stores 300 Matter Capacity 300 Sight Range 16 Terrain Scan Density 10 Weapon Shielding 33 Evasion (%) 62 Item Schematics ----------------- None Robot Schematics ------------------ None Fabricated ------------ Nothing Alien Tech Used ----------------- None Achievements -------------- None Challenges ------------ None Game ------ Seed CloakingLightningCharger Manual? 0 Play Time 00:06:55 Cumulative 668.2 hours Start 2024.02.21 @ 22:12:58 End 2024.02.21 @ 22:18:10 Sessions 1 Manual Loads 0 Difficulty Rogue Special Mode None Game No. 675 Rogue 400 Adventurer 123 Explorer 152 Win Type - Total 25 Types 19/0/4/1/0/0/0/1/0 Lore% 80 Gallery% 91 Achievement% 76 Wizard Run 0 Options --------- Layout 0 ASCII 0 Keyboard 1 Movement Numpad Keybinds 0 Fullscreen 2 Font 18/SmallcapsGlow Map View 76x50 Zoom Use 0% Tactical HUD 1 Map Filters NONE Filters NONE Steam 1 RUN: c14cd644-07c7-4d90-a91e-14c289cef3d4